[Event "Early-Titled-Tuesday-Blitz-September-12-2023"]
[Site "Chess.com"]
[Date "2023.09.12"]
[Round "5"]
[White "surrenderPLS"]
[Black "Witty_Alien"]
[Result "0-1"]
[WhiteElo "2507"]
[BlackElo "2187"]
[TimeControl "180+1"]
[EndTime "8:55:41 PDT"]
[Termination "Witty_Alien won by resignation"]

1. e4 {[%clk 0:03:00.9]} 1... c5 {[%clk 0:02:59.9]} 2. Nf3 {[%clk 0:03:00.3]}
2... d6 {[%clk 0:03:00.4]} 3. d4 {[%clk 0:03:00.1]} 3... cxd4 {[%clk 0:03:01.3]}
4. Nxd4 {[%clk 0:03:01]} 4... Nf6 {[%clk 0:03:02]} 5. Nc3 {[%clk 0:03:01.1]}
5... a6 {[%clk 0:03:02.7]} 6. Rg1 {[%clk 0:03:01.8]} 6... g6 {[%clk 0:03:01.7]}
7. g4 {[%clk 0:03:01.7]} 7... Bg7 {[%clk 0:03:01.7]} 8. g5 {[%clk 0:03:02.4]}
8... Nfd7 {[%clk 0:03:01.5]} 9. f4 {[%clk 0:03:02.8]} 9... O-O {[%clk
0:02:59.6]} 10. h4 {[%clk 0:03:01.8]} 10... Nc6 {[%clk 0:02:59.4]} 11. Be3
{[%clk 0:03:01.6]} 11... Nxd4 {[%clk 0:02:44.5]} 12. Bxd4 {[%clk 0:03:01.6]}
12... e5 {[%clk 0:02:44.3]} 13. fxe5 {[%clk 0:02:52.8]} 13... Nxe5 {[%clk
0:02:14.4]} 14. Rg3 {[%clk 0:02:15.4]} 14... f5 {[%clk 0:02:06.7]} 15. exf5
{[%clk 0:01:56.3]} 15... Rxf5 {[%clk 0:01:50.7]} 16. Bg2 {[%clk 0:01:38.7]}
16... Rf4 {[%clk 0:01:36.2]} 17. Qd2 {[%clk 0:01:15.3]} 17... Rxd4 {[%clk
0:01:32.3]} 18. Qxd4 {[%clk 0:00:50.4]} 18... Nf3+ {[%clk 0:01:31]} 19. Bxf3
{[%clk 0:00:47.1]} 19... Bxd4 {[%clk 0:01:31.2]} 20. O-O-O {[%clk 0:00:41.4]}
20... Bxc3 {[%clk 0:01:02.3]} 21. Bd5+ {[%clk 0:00:41]} 21... Kg7 {[%clk
0:01:02]} 22. Rxc3 {[%clk 0:00:41.9]} 22... Bf5 {[%clk 0:00:55.9]} 23. Bxb7
{[%clk 0:00:39]} 23... Rb8 {[%clk 0:00:53.9]} 24. Bxa6 {[%clk 0:00:29.7]} 24...
Qb6 {[%clk 0:00:32.6]} 25. Rb3 {[%clk 0:00:19]} 25... Qc7 {[%clk 0:00:32.6]} 26.
Rc3 {[%clk 0:00:16.5]} 26... Qb6 {[%clk 0:00:29.3]} 27. Rb3 {[%clk 0:00:16.9]}
27... Qc5 {[%clk 0:00:26.5]} 28. Rc3 {[%clk 0:00:12]} 28... Qb4 {[%clk
0:00:19.8]} 29. Rc7+ {[%clk 0:00:10.2]} 29... Kh8 {[%clk 0:00:20.3]} 30. b3
{[%clk 0:00:09.8]} 30... d5 {[%clk 0:00:19.9]} 31. Rxd5 {[%clk 0:00:08.8]} 31...
Qf4+ {[%clk 0:00:20.3]} 32. Kb2 {[%clk 0:00:07.8]} 32... Qxc7 {[%clk 0:00:21]}
33. c4 {[%clk 0:00:05.3]} 33... Qh2+ {[%clk 0:00:20.4]} 34. Ka3 {[%clk
0:00:05.5]} 34... Ra8 {[%clk 0:00:20.9]} 35. Ra5 {[%clk 0:00:05]} 35... Qc7
{[%clk 0:00:19.5]} 36. b4 {[%clk 0:00:04.7]} 36... Qxa5+ {[%clk 0:00:18.7]} 37.
bxa5 {[%clk 0:00:04.9]} 37... Rxa6 {[%clk 0:00:19.6]} 38. Kb4 {[%clk 0:00:05.8]}
38... Bd7 {[%clk 0:00:19.5]} 39. a4 {[%clk 0:00:04.7]} 39... Rc6 {[%clk
0:00:17.5]} 40. Kb5 {[%clk 0:00:04.3]} 40... h6 {[%clk 0:00:16.6]} 41. a6 {[%clk
0:00:04.3]} 41... hxg5 {[%clk 0:00:13.6]} 42. a7 {[%clk 0:00:04]} 42... Rc8+
{[%clk 0:00:11.8]} 43. Kb6 {[%clk 0:00:04.3]} 43... Bc6 {[%clk 0:00:12.2]} 44.
hxg5 {[%clk 0:00:04.3]} 44... Kg7 {[%clk 0:00:11.6]} 45. c5 {[%clk 0:00:04.8]}
45... Kf7 {[%clk 0:00:11.9]} 46. a5 {[%clk 0:00:05.3]} 46... Ke6 {[%clk
0:00:12.3]} 47. a6 {[%clk 0:00:05.6]} 47... Kf5 {[%clk 0:00:12.5]} 48. a8=Q
{[%clk 0:00:04.7]} 48... Bxa8 {[%clk 0:00:12.8]} 49. Ka7 {[%clk 0:00:04.5]}
49... Kxg5 {[%clk 0:00:11.8]} 50. c6 {[%clk 0:00:05]} 50... Bxc6 {[%clk
0:00:11.9]} 51. Kb6 {[%clk 0:00:05.4]} 51... Kf4 {[%clk 0:00:12.6]} 52. a7
{[%clk 0:00:06.3]} 52... g5 {[%clk 0:00:12.9]} 0-1

[Event "Early-Titled-Tuesday-Blitz-September-12-2023"]
[Site "Chess.com"]
[Date "2023.09.12"]
[Round "5"]
[White "YairParkhov"]
[Black "Rikikits"]
[Result "0-1"]
[WhiteElo "2603"]
[BlackElo "2859"]
[TimeControl "180+1"]
[EndTime "8:55:45 PDT"]
[Termination "Rikikits won on time"]

1. d4 {[%clk 0:03:00.9]} 1... d5 {[%clk 0:02:44.5]} 2. Nf3 {[%clk 0:03:00]} 2...
Nc6 {[%clk 0:02:44.3]} 3. Bf4 {[%clk 0:02:58.1]} 3... Bg4 {[%clk 0:02:43.9]} 4.
e3 {[%clk 0:02:51.5]} 4... e5 {[%clk 0:02:43.1]} 5. dxe5 {[%clk 0:02:49.5]} 5...
f6 {[%clk 0:02:43.6]} 6. e6 {[%clk 0:02:44.1]} 6... Bxe6 {[%clk 0:02:40.5]} 7.
Bb5 {[%clk 0:02:38.6]} 7... Ne7 {[%clk 0:02:38.5]} 8. O-O {[%clk 0:02:34.4]}
8... h5 {[%clk 0:02:38]} 9. h3 {[%clk 0:01:57]} 9... g5 {[%clk 0:02:30.8]} 10.
Bh2 {[%clk 0:01:56.9]} 10... a6 {[%clk 0:02:27.8]} 11. Nd4 {[%clk 0:01:53.7]}
11... Bd7 {[%clk 0:02:26.1]} 12. Nxc6 {[%clk 0:01:41.8]} 12... Nxc6 {[%clk
0:02:21.2]} 13. Ba4 {[%clk 0:01:34.8]} 13... Ne7 {[%clk 0:02:14.8]} 14. Bb3
{[%clk 0:01:11.7]} 14... Be6 {[%clk 0:02:00.8]} 15. e4 {[%clk 0:01:01.9]} 15...
Qd7 {[%clk 0:01:56.5]} 16. exd5 {[%clk 0:01:01.2]} 16... Nxd5 {[%clk 0:01:56.7]}
17. Qe2 {[%clk 0:00:46.9]} 17... O-O-O {[%clk 0:01:55]} 18. Nc3 {[%clk 0:00:40]}
18... Nf4 {[%clk 0:01:38.1]} 19. Bxf4 {[%clk 0:00:38.3]} 19... Bxb3 {[%clk
0:01:39]} 20. Bxc7 {[%clk 0:00:34.5]} 20... Re8 {[%clk 0:01:39]} 21. Qf3 {[%clk
0:00:28.8]} 21... g4 {[%clk 0:01:34]} 22. Qxf6 {[%clk 0:00:20.4]} 22... Bg7
{[%clk 0:01:31.8]} 23. Qb6 {[%clk 0:00:18.4]} 23... Bc4 {[%clk 0:01:29.6]} 24.
Bg3 {[%clk 0:00:16.8]} 24... h4 {[%clk 0:01:23.9]} 25. Bf4 {[%clk 0:00:15]}
25... Rhf8 {[%clk 0:01:21.1]} 26. Rfd1 {[%clk 0:00:12.1]} 26... Qc6 {[%clk
0:01:18.6]} 27. Qxc6+ {[%clk 0:00:09.8]} 27... bxc6 {[%clk 0:01:19.5]} 28. Bd6
{[%clk 0:00:09.9]} 28... Rg8 {[%clk 0:01:12.1]} 29. hxg4 {[%clk 0:00:09.8]}
29... Bxc3 {[%clk 0:01:11.5]} 30. bxc3 {[%clk 0:00:10.2]} 30... Rxg4 {[%clk
0:01:12.3]} 31. Rab1 {[%clk 0:00:10.1]} 31... Reg8 {[%clk 0:01:09.3]} 32. Rb8+
{[%clk 0:00:09.5]} 32... Kd7 {[%clk 0:01:09.8]} 33. Rxg8 {[%clk 0:00:05.2]}
33... Bxg8 {[%clk 0:01:03.1]} 34. f3 {[%clk 0:00:04.8]} 34... Ra4 {[%clk
0:01:02.2]} 35. Bg3+ {[%clk 0:00:04.8]} 35... Ke8 {[%clk 0:00:59.7]} 36. Bc7
{[%clk 0:00:03.2]} 36... Bxa2 {[%clk 0:00:58.6]} 37. Rd8+ {[%clk 0:00:02.6]}
37... Ke7 {[%clk 0:00:57.3]} 38. Rd2 {[%clk 0:00:02.6]} 38... Bd5 {[%clk
0:00:55.5]} 39. Kf2 {[%clk 0:00:02.7]} 39... a5 {[%clk 0:00:52.6]} 40. Ke3
{[%clk 0:00:01.4]} 40... Ra1 {[%clk 0:00:51]} 41. Kd4 {[%clk 0:00:01.1]} 41...
a4 {[%clk 0:00:48.5]} 42. c4 {[%clk 0:00:01.8]} 42... Be6 {[%clk 0:00:48.4]} 43.
Kc5 {[%clk 0:00:02.4]} 43... a3 {[%clk 0:00:44.5]} 44. Bd6+ {[%clk 0:00:03]}
44... Kf7 {[%clk 0:00:44]} 45. c3 {[%clk 0:00:02.6]} 45... a2 {[%clk 0:00:37.8]}
46. Be5 {[%clk 0:00:02.5]} 46... Kg6 {[%clk 0:00:35.6]} 47. f4 {[%clk
0:00:02.1]} 47... Kf5 {[%clk 0:00:35.3]} 48. Re2 {[%clk 0:00:02.3]} 48... Bf7
{[%clk 0:00:32.3]} 49. Rf2 {[%clk 0:00:01.7]} 49... Ke4 {[%clk 0:00:31.9]} 50.
Rd2 {[%clk 0:00:01.8]} 50... Ke3 {[%clk 0:00:31.2]} 51. Rb2 {[%clk 0:00:02.1]}
51... Kd3 {[%clk 0:00:30.5]} 52. f5 {[%clk 0:00:02.7]} 52... Bxc4 {[%clk
0:00:30.2]} 53. f6 {[%clk 0:00:02.3]} 53... Rf1 {[%clk 0:00:29.8]} 54. Rxa2
{[%clk 0:00:02.1]} 54... Bxa2 {[%clk 0:00:30]} 55. Kxc6 {[%clk 0:00:02.7]} 55...
Ke4 {[%clk 0:00:28.5]} 56. Kd6 {[%clk 0:00:03]} 56... Kf5 {[%clk 0:00:23.6]} 57.
Bd4 {[%clk 0:00:02]} 57... Kg6 {[%clk 0:00:22.4]} 58. Kc5 {[%clk 0:00:01.1]}
58... Rf5+ {[%clk 0:00:22.2]} 0-1

[Event "Early-Titled-Tuesday-Blitz-September-12-2023"]
[Site "Chess.com"]
[Date "2023.09.12"]
[Round "5"]
[White "FoxOnTheRun97"]
[Black "MightyGMpretender"]
[Result "1-0"]
[WhiteElo "2573"]
[BlackElo "2804"]
[TimeControl "180+1"]
[EndTime "8:55:46 PDT"]
[Termination "FoxOnTheRun97 won on time"]

1. d4 {[%clk 0:03:00.9]} 1... Nf6 {[%clk 0:03:00.3]} 2. Bg5 {[%clk 0:03:00.3]}
2... Ne4 {[%clk 0:02:59.7]} 3. h4 {[%clk 0:02:59.9]} 3... h6 {[%clk 0:02:54.4]}
4. Bf4 {[%clk 0:02:57.5]} 4... d5 {[%clk 0:02:54.3]} 5. Nd2 {[%clk 0:02:56.9]}
5... Bf5 {[%clk 0:02:47.5]} 6. e3 {[%clk 0:02:56.9]} 6... e6 {[%clk 0:02:45.2]}
7. g4 {[%clk 0:02:41.1]} 7... Bh7 {[%clk 0:02:43.4]} 8. Bd3 {[%clk 0:02:39.5]}
8... Bd6 {[%clk 0:02:35]} 9. Ne2 {[%clk 0:02:32.3]} 9... c5 {[%clk 0:02:25.8]}
10. Nxe4 {[%clk 0:02:25.1]} 10... dxe4 {[%clk 0:02:18.9]} 11. Bb5+ {[%clk
0:02:24.3]} 11... Ke7 {[%clk 0:01:53.1]} 12. c3 {[%clk 0:02:05.6]} 12... Nc6
{[%clk 0:01:38.9]} 13. g5 {[%clk 0:01:43.1]} 13... e5 {[%clk 0:01:08.2]} 14.
dxe5 {[%clk 0:01:30]} 14... Nxe5 {[%clk 0:01:08.2]} 15. Bxe5 {[%clk 0:01:28]}
15... Bxe5 {[%clk 0:01:09.1]} 16. Qb3 {[%clk 0:01:23.4]} 16... Qb6 {[%clk
0:00:35.7]} 17. Qd5 {[%clk 0:01:07.6]} 17... Qc7 {[%clk 0:00:34.9]} 18. O-O-O
{[%clk 0:00:44.7]} 18... Rad8 {[%clk 0:00:33.8]} 19. Qb3 {[%clk 0:00:43.5]}
19... a6 {[%clk 0:00:31.5]} 20. Bc4 {[%clk 0:00:43]} 20... b5 {[%clk 0:00:27.7]}
21. Bd5 {[%clk 0:00:30.6]} 21... Bf5 {[%clk 0:00:27.9]} 22. Qc2 {[%clk
0:00:22.7]} 22... hxg5 {[%clk 0:00:20.8]} 23. Bxe4 {[%clk 0:00:22.8]} 23... Be6
{[%clk 0:00:18.7]} 24. hxg5 {[%clk 0:00:22.1]} 24... g6 {[%clk 0:00:18.9]} 25.
Kb1 {[%clk 0:00:17.8]} 25... Rxd1+ {[%clk 0:00:08.7]} 26. Rxd1 {[%clk
0:00:17.4]} 26... Rh2 {[%clk 0:00:09.4]} 27. Ng1 {[%clk 0:00:10.4]} 27... Bg7
{[%clk 0:00:07.8]} 28. Qe2 {[%clk 0:00:10.1]} 28... Qe5 {[%clk 0:00:06.2]} 29.
Qf3 {[%clk 0:00:10.1]} 29... Rxf2 {[%clk 0:00:03.7]} 30. Qxf2 {[%clk 0:00:09.6]}
30... Qxe4+ {[%clk 0:00:04.3]} 31. Qc2 {[%clk 0:00:09.2]} 31... Qg4 {[%clk
0:00:03.3]} 32. Ka1 {[%clk 0:00:08.7]} 32... Qxg5 {[%clk 0:00:03.3]} 33. Qd2
{[%clk 0:00:08.7]} 33... Ke8 {[%clk 0:00:01.5]} 34. Nf3 {[%clk 0:00:08.9]} 34...
Qe7 {[%clk 0:00:01.8]} 35. Rh1 {[%clk 0:00:07.4]} 35... Bf6 {[%clk 0:00:02.1]}
36. e4 {[%clk 0:00:06.9]} 36... Qb7 {[%clk 0:00:02.2]} 37. Re1 {[%clk
0:00:05.4]} 37... Qe7 {[%clk 0:00:02.5]} 38. e5 {[%clk 0:00:05.7]} 38... Bg7
{[%clk 0:00:03.2]} 39. Ng5 {[%clk 0:00:05.9]} 39... Bc4 {[%clk 0:00:02.7]} 40.
Ne4 {[%clk 0:00:05]} 40... Bxe5 {[%clk 0:00:02.5]} 41. Nd6+ {[%clk 0:00:04.8]}
41... Kf8 {[%clk 0:00:02]} 42. Nxc4 {[%clk 0:00:05.2]} 42... bxc4 {[%clk
0:00:02.2]} 43. Qd5 {[%clk 0:00:04.4]} 43... f6 {[%clk 0:00:01.9]} 44. a3 {[%clk
0:00:04.6]} 44... Kg7 {[%clk 0:00:02.1]} 45. Qxc4 {[%clk 0:00:05]} 45... g5
{[%clk 0:00:02.7]} 46. Qxa6 {[%clk 0:00:05.2]} 46... g4 {[%clk 0:00:02.5]} 47.
Qe2 {[%clk 0:00:04.8]} 47... g3 {[%clk 0:00:02.6]} 48. Qg4+ {[%clk 0:00:05.1]}
48... Kf8 {[%clk 0:00:02.6]} 49. Rh1 {[%clk 0:00:05.8]} 49... Qg7 {[%clk
0:00:02.3]} 50. Qc8+ {[%clk 0:00:05.4]} 50... Kf7 {[%clk 0:00:01.9]} 51. Qd7+
{[%clk 0:00:05.7]} 51... Kg6 {[%clk 0:00:02]} 52. Qe8+ {[%clk 0:00:05.7]} 52...
Kf5 {[%clk 0:00:01.2]} 53. Qc8+ {[%clk 0:00:05.5]} 53... Kf4 {[%clk 0:00:01.1]}
54. Rf1+ {[%clk 0:00:06]} 1-0

[Event "Early-Titled-Tuesday-Blitz-September-12-2023"]
[Site "Chess.com"]
[Date "2023.09.12"]
[Round "5"]
[White "GaalZsoka"]
[Black "jk13"]
[Result "0-1"]
[WhiteElo "2478"]
[BlackElo "2695"]
[TimeControl "180+1"]
[EndTime "8:55:48 PDT"]
[Termination "jk13 won by resignation"]

1. Nf3 {[%clk 0:03:00.9]} 1... d5 {[%clk 0:03:00.1]} 2. g3 {[%clk 0:02:59.5]}
2... e6 {[%clk 0:03:00.6]} 3. Bg2 {[%clk 0:02:59.6]} 3... Nf6 {[%clk 0:03:01.5]}
4. O-O {[%clk 0:02:59.8]} 4... b5 {[%clk 0:03:02.1]} 5. d4 {[%clk 0:02:58.5]}
5... Nbd7 {[%clk 0:03:01.7]} 6. a4 {[%clk 0:02:55.2]} 6... b4 {[%clk 0:03:01.9]}
7. c3 {[%clk 0:02:55.9]} 7... bxc3 {[%clk 0:03:02.7]} 8. Nxc3 {[%clk 0:02:54.7]}
8... Be7 {[%clk 0:03:00.1]} 9. a5 {[%clk 0:02:54.2]} 9... Ba6 {[%clk 0:02:59.4]}
10. Qc2 {[%clk 0:02:39.1]} 10... O-O {[%clk 0:02:59.2]} 11. Rd1 {[%clk
0:02:39.3]} 11... c6 {[%clk 0:02:52.3]} 12. e4 {[%clk 0:02:37.7]} 12... Rb8
{[%clk 0:02:42]} 13. h4 {[%clk 0:02:18.4]} 13... h6 {[%clk 0:02:41.3]} 14. Bf4
{[%clk 0:02:05.5]} 14... Rb4 {[%clk 0:02:41.3]} 15. e5 {[%clk 0:02:02.6]} 15...
Ne8 {[%clk 0:02:39.4]} 16. Nh2 {[%clk 0:01:45.6]} 16... c5 {[%clk 0:02:35.9]}
17. Ne2 {[%clk 0:01:38.7]} 17... Bxe2 {[%clk 0:02:30.3]} 18. Qxe2 {[%clk
0:01:39.6]} 18... cxd4 {[%clk 0:02:27.9]} 19. a6 {[%clk 0:01:19.6]} 19... Qb8
{[%clk 0:01:43]} 20. Qg4 {[%clk 0:00:50.4]} 20... Nxe5 {[%clk 0:01:31.3]} 21.
Qh5 {[%clk 0:00:39.5]} 21... Bd6 {[%clk 0:01:24.5]} 22. Re1 {[%clk 0:00:18.2]}
22... Nf6 {[%clk 0:01:19.5]} 23. Qd1 {[%clk 0:00:17.4]} 23... Ng6 {[%clk
0:01:09.8]} 24. Bxd6 {[%clk 0:00:16.9]} 24... Qxd6 {[%clk 0:01:10]} 25. Nf3
{[%clk 0:00:16.7]} 25... Qb6 {[%clk 0:01:02.1]} 26. h5 {[%clk 0:00:15.9]} 26...
Nxh5 {[%clk 0:00:59.5]} 27. Nxd4 {[%clk 0:00:06.2]} 27... Nxg3 {[%clk
0:00:46.7]} 28. fxg3 {[%clk 0:00:04.9]} 28... Rxd4 {[%clk 0:00:46.6]} 29. Qf3
{[%clk 0:00:03.6]} 29... Rd2+ {[%clk 0:00:36.9]} 30. Qe3 {[%clk 0:00:04]} 30...
Qxe3+ {[%clk 0:00:33.8]} 31. Rxe3 {[%clk 0:00:04.9]} 31... Rxb2 {[%clk
0:00:34.2]} 32. Rc3 {[%clk 0:00:05.5]} 32... Ra8 {[%clk 0:00:21.9]} 33. Rc7
{[%clk 0:00:05.7]} 33... Ne5 {[%clk 0:00:20]} 34. Re1 {[%clk 0:00:04.9]} 34...
Ng4 {[%clk 0:00:15.5]} 35. Rf1 {[%clk 0:00:04.5]} 35... Rxg2+ {[%clk 0:00:14.3]}
36. Kxg2 {[%clk 0:00:04.6]} 36... Ne3+ {[%clk 0:00:14.9]} 37. Kf2 {[%clk
0:00:05.3]} 37... Nxf1 {[%clk 0:00:15.3]} 38. Kxf1 {[%clk 0:00:06.2]} 38... g5
{[%clk 0:00:15.6]} 39. g4 {[%clk 0:00:05.8]} 39... Kg7 {[%clk 0:00:16.1]} 40.
Ke2 {[%clk 0:00:05.7]} 40... Kf6 {[%clk 0:00:16.2]} 41. Ke3 {[%clk 0:00:06]}
41... Rb8 {[%clk 0:00:16.2]} 42. Rxa7 {[%clk 0:00:05.5]} 42... Rb3+ {[%clk
0:00:16.9]} 43. Kd4 {[%clk 0:00:05.5]} 43... Ra3 {[%clk 0:00:16.9]} 44. Kc5
{[%clk 0:00:05]} 44... Ke5 {[%clk 0:00:15]} 45. Kb5 {[%clk 0:00:05.1]} 45... f5
{[%clk 0:00:13.6]} 46. gxf5 {[%clk 0:00:05.2]} 46... exf5 {[%clk 0:00:14.5]} 47.
Rh7 {[%clk 0:00:03.9]} 47... g4 {[%clk 0:00:12.6]} 48. Rxh6 {[%clk 0:00:03.1]}
48... g3 {[%clk 0:00:12.7]} 49. Rg6 {[%clk 0:00:03.1]} 49... f4 {[%clk
0:00:12.9]} 50. Rg7 {[%clk 0:00:02]} 50... Ke4 {[%clk 0:00:11.4]} 51. Re7+
{[%clk 0:00:01.5]} 51... Kf3 {[%clk 0:00:11.5]} 52. a7 {[%clk 0:00:01]} 52... g2
{[%clk 0:00:11.4]} 53. Kb6 {[%clk 0:00:01.5]} 53... g1=Q+ {[%clk 0:00:10.8]} 54.
Kb7 {[%clk 0:00:01.9]} 54... Qxa7+ {[%clk 0:00:09.8]} 55. Kc8 {[%clk 0:00:02]}
55... Qxe7 {[%clk 0:00:09.8]} 56. Kb8 {[%clk 0:00:02.2]} 56... d4 {[%clk
0:00:07.7]} 0-1

[Event "Early-Titled-Tuesday-Blitz-September-12-2023"]
[Site "Chess.com"]
[Date "2023.09.12"]
[Round "5"]
[White "lrestevez"]
[Black "Dr_crypt"]
[Result "0-1"]
[WhiteElo "2133"]
[BlackElo "2412"]
[TimeControl "180+1"]
[EndTime "8:55:50 PDT"]
[Termination "Dr_crypt won by resignation"]

1. e4 {[%clk 0:02:40.8]} 1... d5 {[%clk 0:02:59.3]} 2. exd5 {[%clk 0:02:40.6]}
2... Qxd5 {[%clk 0:02:59.9]} 3. Nc3 {[%clk 0:02:40.9]} 3... Qd6 {[%clk 0:03:00]}
4. g3 {[%clk 0:02:40.1]} 4... c6 {[%clk 0:02:59.8]} 5. Bg2 {[%clk 0:02:40.2]}
5... Bf5 {[%clk 0:02:59.3]} 6. Nge2 {[%clk 0:02:40.5]} 6... e6 {[%clk
0:02:59.1]} 7. O-O {[%clk 0:02:41.2]} 7... Nf6 {[%clk 0:02:57.7]} 8. d3 {[%clk
0:02:41.7]} 8... Qc7 {[%clk 0:02:57.7]} 9. Rb1 {[%clk 0:02:37.5]} 9... a5 {[%clk
0:02:56.9]} 10. Bd2 {[%clk 0:02:35.2]} 10... Nbd7 {[%clk 0:02:46.8]} 11. a4
{[%clk 0:02:35.4]} 11... Bb4 {[%clk 0:02:46.2]} 12. Qe1 {[%clk 0:02:35.4]} 12...
O-O {[%clk 0:02:45.3]} 13. Ne4 {[%clk 0:02:35.7]} 13... Bxd2 {[%clk 0:02:37.9]}
14. Qxd2 {[%clk 0:02:36.6]} 14... Rfd8 {[%clk 0:02:37.3]} 15. Qg5 {[%clk
0:02:26.4]} 15... h6 {[%clk 0:02:29.6]} 16. Qh4 {[%clk 0:02:25.7]} 16... Nxe4
{[%clk 0:02:22.8]} 17. dxe4 {[%clk 0:02:22.6]} 17... Bh7 {[%clk 0:02:22.7]} 18.
Rfd1 {[%clk 0:02:21]} 18... Nc5 {[%clk 0:02:19.3]} 19. b3 {[%clk 0:02:14.1]}
19... e5 {[%clk 0:02:11.3]} 20. Nc3 {[%clk 0:02:06.9]} 20... Ne6 {[%clk
0:02:07.7]} 21. Qg4 {[%clk 0:01:58.9]} 21... Nd4 {[%clk 0:02:02.1]} 22. Rbc1
{[%clk 0:01:55.2]} 22... Bg6 {[%clk 0:01:51.4]} 23. Bf1 {[%clk 0:01:22]} 23...
Qe7 {[%clk 0:01:49.5]} 24. Rd3 {[%clk 0:01:12.5]} 24... h5 {[%clk 0:01:30.2]}
25. Qd1 {[%clk 0:01:12.4]} 25... h4 {[%clk 0:01:26.6]} 26. Ne2 {[%clk
0:01:11.5]} 26... Bxe4 {[%clk 0:01:13.7]} 27. Nxd4 {[%clk 0:01:01.6]} 27... Bxd3
{[%clk 0:01:10.8]} 28. Bxd3 {[%clk 0:00:48.2]} 28... Rxd4 {[%clk 0:01:08.5]} 29.
Qh5 {[%clk 0:00:42.8]} 29... e4 {[%clk 0:01:05.4]} 30. Re1 {[%clk 0:00:43]}
30... Re8 {[%clk 0:00:59.6]} 31. Qxa5 {[%clk 0:00:38.9]} 31... h3 {[%clk
0:00:49.2]} 32. Bf1 {[%clk 0:00:31.7]} 32... Qd7 {[%clk 0:00:43.1]} 33. Qh5
{[%clk 0:00:27.8]} 33... g6 {[%clk 0:00:38.1]} 34. Qxh3 {[%clk 0:00:27.4]} 34...
Qxh3 {[%clk 0:00:37.6]} 35. Bxh3 {[%clk 0:00:28.3]} 35... Rd2 {[%clk 0:00:37.9]}
36. Rc1 {[%clk 0:00:25.2]} 36... Red8 {[%clk 0:00:37.1]} 37. Kf1 {[%clk
0:00:19.6]} 37... Rd1+ {[%clk 0:00:33.9]} 38. Rxd1 {[%clk 0:00:20.1]} 38...
Rxd1+ {[%clk 0:00:34.2]} 39. Ke2 {[%clk 0:00:20.5]} 39... Rh1 {[%clk 0:00:34.4]}
40. Bc8 {[%clk 0:00:20.2]} 40... b6 {[%clk 0:00:32.7]} 41. Bb7 {[%clk
0:00:20.4]} 41... c5 {[%clk 0:00:32]} 42. Bxe4 {[%clk 0:00:20.5]} 42... Rxh2
{[%clk 0:00:32.4]} 43. Bd3 {[%clk 0:00:20.3]} 43... Rh1 {[%clk 0:00:31.4]} 44.
Kf3 {[%clk 0:00:20.2]} 44... Kf8 {[%clk 0:00:30.8]} 45. Kg2 {[%clk 0:00:20.5]}
45... Rc1 {[%clk 0:00:30.4]} 46. Kf3 {[%clk 0:00:20.7]} 46... Ke7 {[%clk
0:00:30.3]} 47. Ke2 {[%clk 0:00:20.9]} 47... Kd6 {[%clk 0:00:30.4]} 48. Kd2
{[%clk 0:00:21.1]} 48... Ra1 {[%clk 0:00:30.6]} 49. Ke2 {[%clk 0:00:21.3]} 49...
Ke5 {[%clk 0:00:30.5]} 50. f3 {[%clk 0:00:21.7]} 50... Kd4 {[%clk 0:00:30.6]}
51. Kd2 {[%clk 0:00:21.2]} 51... Rg1 {[%clk 0:00:30.4]} 52. c3+ {[%clk
0:00:21.3]} 52... Ke5 {[%clk 0:00:30.3]} 53. g4 {[%clk 0:00:21.5]} 53... Kf4
{[%clk 0:00:29.6]} 54. Be4 {[%clk 0:00:21.6]} 54... f5 {[%clk 0:00:27.2]} 55.
gxf5 {[%clk 0:00:22.5]} 55... gxf5 {[%clk 0:00:27.5]} 56. Bc6 {[%clk 0:00:22.6]}
56... Rg6 {[%clk 0:00:25.7]} 57. Bb7 {[%clk 0:00:21.8]} 57... Rd6+ {[%clk
0:00:25.8]} 58. Ke2 {[%clk 0:00:20.6]} 58... Rd8 {[%clk 0:00:24.9]} 59. Bc6
{[%clk 0:00:20.4]} 59... Rd6 {[%clk 0:00:23.9]} 60. Bb7 {[%clk 0:00:20.3]} 60...
Re6+ {[%clk 0:00:22.8]} 61. Kd2 {[%clk 0:00:19.8]} 61... Re3 {[%clk 0:00:22.5]}
62. b4 {[%clk 0:00:19.4]} 62... cxb4 {[%clk 0:00:22]} 63. cxb4 {[%clk
0:00:20.3]} 63... Ra3 {[%clk 0:00:22.2]} 64. Bc6 {[%clk 0:00:19.7]} 64... Rb3
{[%clk 0:00:22.1]} 65. a5 {[%clk 0:00:18.9]} 65... bxa5 {[%clk 0:00:20.4]} 66.
bxa5 {[%clk 0:00:18.8]} 66... Ra3 {[%clk 0:00:20.7]} 67. Bb7 {[%clk 0:00:15.7]}
67... Rxa5 {[%clk 0:00:20.6]} 68. Bc6 {[%clk 0:00:14]} 68... Ra3 {[%clk
0:00:20.2]} 69. Bb7 {[%clk 0:00:14]} 69... Rxf3 {[%clk 0:00:20.2]} 70. Bxf3
{[%clk 0:00:14.4]} 70... Kxf3 {[%clk 0:00:20.3]} 71. Ke1 {[%clk 0:00:15.3]}
71... Kg2 {[%clk 0:00:20.1]} 0-1